bitfinex-derivatives/quotes_ETHF0:USTF0_20250624
["timestamp","ask_amount","ask_price","bid_price","bid_amount"]
[1750776520220,2.21602,2436.8,2436.7,0.82035]
[1750776520816,0.82019,2437.3,2436.8,2.05081]
[1750776521114,0.82021,2437.2,2437.1,0.82021]
[1750776521724,0.82013,2437.4,2437.3,0.82012]
[1750776522018,8.47741,2437.5,2437.4,0.82012]
[1750776522223,5.91248,2437.8,2437.4,0.82012]
[1750776522224,26.5917,2437.8,2437.7,0.82002]
[1750776522723,0.6547,2437.8,2437.7,0.82002]
[1750776522924,0.6547,2438.1,2437.7,0.82002]
[1750776523218,0.6547,2438.1,2437.9,0.81995]
[1750776523420,0.6547,2438.1,2437.9,0.81993]
[1750776523723,0.82004,2437.7,2437.6,0.82003]
[1750776523919,0.82012,2437.4,2437.3,4.02792]
[1750776524222,0.82012,2437.4,2437.3,3.2078]
[1750776524419,7.7007,2437.6,2437.3,3.2078]
[1750776524624,0.82002,2437.7,2437.6,0.82004]
[1750776524827,0.82006,2437.6,2437.5,0.82007]
[1750776525217,0.82007,2437.6,2437.5,0.82008]
[1750776525415,0.7037,2437.8,2437.3,4.5105]
[1750776525622,47.269,2438.8,2437.6,3.2078]
[1750776525831,0.81992,2438.1,2437.9,0.81993]
[1750776526324,0.81992,2438.0,2437.9,0.81993]
[1750776526521,0.81994,2438.0,2437.8,0.81997]
[1750776526721,0.7037,2438.1,2437.7,2.80609]
[1750776526918,0.81993,2438.0,2437.8,0.81996]
[1750776527236,0.7037,2438.1,2437.9,0.81995]
[1750776527425,1.5236,2438.1,2438.0,0.81992]
[1750776527625,1.5236,2438.1,2438.0,0.81991]
[1750776527827,0.7037,2438.1,2437.8,0.81996]
[1750776528026,0.81991,2438.0,2437.9,0.81995]
[1750776528524,0.82,2437.8,2437.7,0.82]
[1750776528922,0.82,2437.8,2437.6,3.2078]
[1750776528923,0.6742,2437.9,2437.8,0.81998]
[1750776529422,0.7037,2438.1,2437.6,4.6329]
[1750776529630,0.7037,2438.1,2438.0,0.81991]
[1750776530017,0.7037,2438.1,2437.9,0.81991]
[1750776530220,0.7037,2438.1,2438.0,0.8199]
[1750776530422,0.81991,2438.0,2437.9,0.81991]
[1750776530720,0.81992,2438.0,2437.9,0.81992]
[1750776530920,0.81995,2437.9,2437.8,0.81994]
[1750776532124,2.0849,2438.1,2437.6,4.6329]
[1750776532429,0.81993,2438.0,2437.9,0.81992]
[1750776532622,2.0849,2438.1,2437.8,0.81994]
[1750776532623,0.81995,2437.9,2437.8,0.81994]
[1750776533017,0.81996,2437.9,2437.8,0.81995]
[1750776533427,2.0849,2438.1,2437.1,2.05051]
[1750776533428,2.04976,2438.0,2437.1,2.05051]
[1750776533627,0.82009,2437.5,2437.4,0.82008]
[1750776533826,0.82019,2437.2,2437.1,0.82018]
[1750776534016,0.82014,2437.3,2436.8,2.05075]
[1750776534218,0.6751,2437.2,2436.8,3.43375]
[1750776534425,1.49529,2437.2,2437.1,0.8202]
[1750776535023,0.6751,2437.2,2436.8,1.383]
[1750776535231,0.82027,2437.0,2436.9,0.82025]
[1750776535424,0.8203,2436.8,2436.7,3.2078]
[1750776535625,2.05085,2436.7,2436.3,0.82045]
[1750776535925,2.05111,2436.4,2435.6,2.4308954]
[1750776536124,8.3463,2436.3,2435.5,7.7283954]
[1750776536330,3.2078,2436.2,2435.9,0.82059]
[1750776536526,0.82054,2436.1,2435.9,0.82059]
[1750776536725,3.2078,2436.2,2435.5,5.2975]
[1750776537034,3.2078,2436.2,2436.0,0.82055]
[1750776537423,4.02832,2436.2,2436.1,0.82054]
[1750776537623,3.2078,2436.2,2435.8,3.2078]
[1750776537831,3.2078,2436.2,2436.1,0.82054]
[1750776539033,0.82055,2436.1,2436.0,0.82055]
[1750776539333,0.82057,2436.1,2436.0,0.82057]
[1750776539629,0.82056,2436.1,2436.0,0.82057]
[1750776540225,4.02832,2436.2,2436.1,0.82054]
[1750776540529,6.987,2436.3,2436.2,0.82051]
[1750776540828,6.987,2436.3,2436.0,2.05144]
[1750776540829,7.80745,2436.4,2436.3,0.82045]
[1750776541026,6.987,2436.4,2436.3,0.82045]
[1750776541434,7.80744,2436.4,2436.3,0.82045]
[1750776541731,0.82044,2436.4,2436.3,0.82045]
[1750776542034,0.82044,2436.4,2435.5,3.8976]
[1750776542035,17.78214786,2436.4,2435.5,3.8976]
[1750776542239,17.78214786,2436.4,2435.4,3.1239954]
[1750776542240,5.79514786,2436.1,2435.4,2.0317]
[1750776542418,7.84700786,2435.5,2434.8,3.8967]
[1750776542620,11.05511786,2435.2,2434.4,3.2078]
[1750776542831,0.82106,2434.6,2434.4,4.0289]
[1750776543024,0.82109,2434.5,2434.3,0.82115]
[1750776543332,7.808,2434.8,2434.1,4.5464]
[1750776543527,6.987,2434.8,2434.1,4.5464]
[1750776543727,0.82108,2434.6,2434.3,0.82114]
[1750776544132,8.3289,2434.8,2434.1,4.5464]
[1750776544434,3.2078,2434.5,2434.1,3.2078]
[1750776544627,0.82118,2434.2,2434.1,3.2078]
[1750776544828,8.4125,2434.4,2433.8,4.5464]
[1750776545027,0.82122,2434.1,2433.8,5.36769]
[1750776545328,0.8212,2434.2,2433.9,0.82128]
[1750776545629,8.4125,2434.4,2433.8,4.5464]
[1750776545630,0.82115,2434.3,2433.8,4.5464]
[1750776545827,0.82119,2434.2,2433.8,4.5464]
[1750776546028,7.81019,2434.2,2433.9,0.82128]
[1750776546229,0.82127,2434.0,2433.8,3.2078]
[1750776546532,7.81021,2434.2,2433.9,0.82128]
[1750776546729,3.2078,2434.1,2433.5,4.604]
[1750776547033,3.2078,2434.1,2433.5,4.0292]
[1750776547034,0.82133,2433.8,2433.5,4.0292]
[1750776547232,0.82136,2433.7,2433.5,3.2078]
[1750776547532,0.82138,2433.6,2433.5,3.2078]
[1750776547738,1.4235,2433.7,2433.2,3.2078]
[1750776547938,1.3675,2433.5,2433.2,3.2078]
[1750776548134,7.81145,2433.4,2433.2,3.2078]
[1750776548333,6.99,2433.4,2433.2,4.0293]
[1750776548530,16.99580132,2433.4,2432.8,4.02944]
[1750776548836,2.18901,2433.3,2433.0,0.82157]
[1750776549028,2.18901,2433.3,2433.1,0.82155]
[1750776549228,2.18901,2433.3,2433.1,0.82154]
[1750776549426,6.992,2433.2,2433.1,0.82154]
[1750776549629,6.992,2433.2,2432.8,3.2078]
[1750776549836,2.05415,2432.8,2431.8,3.2078]
[1750776550141,0.82182,2432.4,2431.5,5.26299]
[1750776550343,7.81382,2432.3,2431.9,0.82194]
[1750776550633,7.81382,2432.3,2432.0,0.82192]
[1750776550833,6.992,2432.3,2432.1,0.82188]
[1750776551036,8.53447,2432.8,2432.1,5.26252]
[1750776551242,7.7128,2432.8,2431.9,3.2078]
[1750776551443,1.3681,2432.7,2432.0,1.3528]
[1750776551643,0.82177,2432.5,2432.2,0.82183]
[1750776551833,6.992,2432.4,2432.0,1.3528]
[1750776552142,6.992,2432.4,2431.9,3.2078]
[1750776552443,0.82184,2432.3,2432.1,0.82187]
[1750776552734,0.8219,2432.1,2431.9,1.3528]
[1750776553043,0.82191,2432.1,2431.9,2.17474]
[1750776553343,0.82196,2431.9,2431.8,3.2078]
[1750776553743,8.3601,2432.4,2431.8,3.2078]
[1750776553934,0.82189,2432.1,2431.8,3.2078]
[1750776554136,0.82194,2432.0,2431.9,0.82194]
[1750776554637,13.51461,2432.4,2431.9,0.82194]
[1750776554835,11.4601,2432.4,2432.0,0.82192]
[1750776555033,0.82188,2432.2,2432.0,0.82192]
[1750776555233,0.82188,2432.2,2431.1,0.6836]
[1750776555234,6.79800132,2432.1,2431.1,0.6836]
[1750776555434,0.82208,2431.6,2431.4,0.82211]
[1750776555636,7.81808,2431.6,2431.4,0.82211]
[1750776555845,6.996,2431.6,2431.0,5.26343]
[1750776556038,6.996,2431.6,2430.9,2.117]
[1750776556039,0.82216,2431.3,2431.1,1.4015]
[1750776556239,0.82219,2431.2,2431.1,1.4015]
[1750776556440,0.82225,2431.1,2430.9,1.53778]
[1750776556639,10.2038,2431.1,2430.6,2.22388]
[1750776556841,0.82246,2430.5,2430.3,0.82249]
[1750776557147,2.0563,2430.3,2429.5,3.2078]
[1750776557338,3.2078,2430.1,2428.9,11.623]
[1750776557540,0.82273,2429.6,2429.5,1.3227]
[1750776557735,6.996,2429.7,2428.9,3.53220782]
[1750776558051,3.2078,2429.7,2429.0,1.3227]
[1750776558255,3.2078,2429.4,2429.0,1.40503841]
[1750776558541,3.2078,2429.4,2429.1,0.90523502]
[1750776558746,0.82285,2429.3,2429.1,0.08233502]
[1750776558936,7.0,2429.2,2429.1,0.08233502]
[1750776559251,0.7077,2429.9,2429.1,5.08233502]
[1750776559453,10.2078,2429.7,2429.2,1.3227]
[1750776559651,7.0,2429.6,2429.5,0.82277]
[1750776559857,3.2078,2430.0,2429.9,0.82263]
[1750776560145,7.0,2430.4,2430.3,0.8225]
[1750776560536,47.351,2430.7,2430.6,0.8224]
[1750776560851,3.2078,2430.7,2430.4,1.4167]
[1750776561044,3.2078,2430.7,2429.8,3.2078]
[1750776561349,0.82251,2430.3,2430.1,0.82255]
[1750776561547,7.0,2430.3,2430.1,0.82254]
[1750776561749,0.82261,2430.0,2429.8,0.82264]
[1750776561946,3.2078,2430.0,2429.9,0.82263]
[1750776562247,3.2078,2430.0,2429.6,2.794]
[1750776562450,3.2078,2430.0,2429.6,2.23941]
[1750776562651,3.2078,2430.0,2429.1,38.48734502]
[1750776562652,3.2078,2429.7,2429.1,2.13955502]
[1750776562946,10.2088,2429.7,2429.6,0.82273]
[1750776563154,10.2088,2429.7,2429.3,0.82281]
[1750776563356,0.82279,2429.5,2429.3,0.82281]
[1750776563549,0.82279,2429.5,2429.4,0.8228]
[1750776563743,0.82279,2429.5,2429.2,1.4167]
[1750776563947,0.82275,2429.6,2429.2,1.4167]
[1750776564259,10.2088,2430.0,2429.5,2.05693]
[1750776564444,10.2088,2430.0,2429.9,0.82263]
[1750776565458,11.03143,2430.0,2429.8,0.82264]
[1750776565662,10.2088,2430.0,2429.9,0.82263]
[1750776566260,10.2088,2430.0,2429.8,0.82265]
[1750776566465,11.03141,2430.0,2429.9,0.82263]
[1750776566663,10.2088,2430.0,2429.9,0.82263]
[1750776567350,10.2088,2430.0,2429.8,0.82264]
[1750776567556,10.2088,2430.0,2429.9,0.82263]
[1750776568265,0.8227,2429.7,2429.6,1.3636]
[1750776568456,3.2078,2429.7,2429.1,3.2078]
[1750776568663,7.135,2429.6,2429.2,1.3534]
[1750776568865,7.135,2429.6,2429.5,0.82277]
[1750776569159,0.82284,2429.3,2429.2,2.17624]
[1750776569363,7.135,2429.6,2429.2,1.3534]
[1750776569555,7.135,2429.6,2429.5,0.82277]
[1750776569754,7.135,2429.6,2429.4,0.82279]
[1750776570157,0.82281,2429.4,2429.3,0.82283]
[1750776570458,0.82284,2429.3,2429.2,2.17625]
[1750776570659,0.82288,2429.2,2429.1,0.82288]
[1750776570856,0.82292,2429.1,2429.0,0.82292]
[1750776571056,0.82292,2429.1,2429.0,0.82291]
[1750776571252,0.82292,2429.1,2428.8,0.823]
[1750776571253,0.82298,2428.9,2428.8,0.823]
[1750776571561,3.2078,2429.1,2429.0,0.82294]
[1750776571958,10.3438,2429.1,2428.9,0.82295]
[1750776572166,7.136,2429.1,2429.0,0.82294]
[1750776572666,10.3438,2429.1,2429.0,0.82294]
[1750776572868,11.1667,2429.1,2429.0,0.82294]
[1750776573263,7.136,2429.1,2429.0,0.82294]
[1750776573460,4.03062,2429.4,2429.3,0.82284]
[1750776573758,3.2078,2429.4,2428.9,1.4252]
[1750776573963,3.2078,2429.4,2429.3,0.82284]
[1750776574260,0.6961,2429.6,2429.5,0.82277]
[1750776574261,0.82274,2429.6,2429.5,0.82277]
[1750776574466,7.95974,2429.6,2429.5,0.82277]
[1750776574660,7.137,2429.6,2429.5,0.82277]
[1750776575367,7.137,2429.9,2429.6,0.82273]
[1750776575562,1.47494,2430.2,2429.7,2.05675]
[1750776575868,4.03038,2430.1,2430.0,0.8226]
[1750776576463,10.3448,2430.1,2430.0,0.8226]
[1750776576671,11.16736,2430.1,2430.0,0.8226]
[1750776576965,10.3448,2430.1,2430.0,0.8226]
[1750776577165,11.16736,2430.1,2430.0,0.8226]
[1750776577363,0.82263,2429.9,2429.4,2.05694]
[1750776577568,0.82263,2429.9,2429.8,0.82266]
[1750776578266,0.82272,2429.7,2429.4,3.46734]
[1750776578568,0.82269,2429.8,2429.7,0.82267]
[1750776578773,0.82275,2429.6,2429.5,0.82274]
[1750776579066,0.82282,2429.4,2429.1,2.05725]
[1750776579262,1.9992,2429.7,2429.4,0.82278]
[1750776579570,3.2078,2429.5,2429.4,0.82278]
[1750776579769,0.82278,2429.5,2429.4,0.82278]
[1750776579974,3.2078,2429.8,2429.2,2.05714]
[1750776580156,7.95971,2429.7,2429.6,0.8227]
[1750776580357,0.82261,2430.0,2429.5,2.05689]
[1750776580563,7.137,2429.8,2429.7,0.8227]
[1750776581268,0.82263,2430.0,2429.9,0.82261]
[1750776581656,0.82272,2429.7,2429.6,0.82269]
[1750776581870,1.4235,2429.9,2429.3,2.05709]
[1750776582071,0.82273,2429.7,2429.6,0.82271]
[1750776582270,7.137,2429.8,2429.5,2.05692]
[1750776582471,7.95966,2429.8,2429.7,0.8227]
[1750776582674,0.82265,2429.9,2429.8,0.82266]
[1750776582973,3.2078,2430.0,2429.9,0.82263]
[1750776583164,11.1674,2430.0,2429.9,0.82263]
[1750776583474,10.3448,2430.0,2429.9,0.82263]
[1750776583765,10.3448,2430.0,2429.2,7.32215]
[1750776583766,10.3448,2430.0,2429.0,0.682]
[1750776584072,0.82272,2429.7,2429.6,0.82271]
[1750776584370,0.82275,2429.6,2429.5,0.82274]
[1750776584664,4.03052,2429.7,2429.6,0.82273]
[1750776585072,0.82279,2429.5,2429.4,0.82277]
[1750776585269,3.2078,2429.7,2429.3,1.3082]
[1750776585470,4.03053,2429.7,2429.6,0.82273]
[1750776585769,3.2078,2429.7,2429.6,0.82273]
[1750776585961,4.0305,2429.7,2429.6,0.82273]
[1750776586164,3.2078,2429.7,2429.6,0.82273]
[1750776586567,3.2078,2429.7,2429.1,5.6386954]
[1750776586765,5.26484,2429.4,2428.9,3.8496954]
[1750776586972,4.03073,2429.1,2429.0,0.82293]
[1750776587173,0.82297,2429.0,2428.9,0.82295]
[1750776587965,1.4159,2429.4,2428.7,2.05757]
[1750776588173,0.82289,2429.2,2429.1,0.82288]
[1750776588382,0.82293,2429.1,2429.0,0.82291]
[1750776588875,0.82292,2429.1,2429.0,0.8229]
[1750776589269,0.82289,2429.2,2429.1,0.82286]
[1750776589471,0.82284,2429.3,2429.2,0.82283]
[1750776590064,0.82284,2429.3,2428.8,0.82298]
[1750776590065,0.82301,2428.9,2428.8,0.82298]
[1750776590373,0.82295,2429.0,2428.9,0.82294]
[1750776590871,3.2078,2429.1,2429.0,0.82293]
[1750776591070,3.2078,2429.4,2429.3,0.82283]
[1750776591266,3.2078,2429.6,2429.5,0.82273]
[1750776591469,0.7192,2430.2,2429.3,5.6386954]
[1750776591670,0.7192,2430.2,2429.4,1.32]
[1750776591671,3.2078,2429.6,2429.4,1.32]
[1750776591869,0.8228,2429.5,2429.4,0.82279]
[1750776592366,0.8228,2429.5,2429.2,0.6631]
[1750776592571,0.7192,2429.4,2429.0,2.05732]
[1750776592768,3.927,2429.4,2429.3,0.82283]
[1750776592979,2.4551372,2430.2,2429.3,3.2078]
[1750776593171,3.2078,2430.3,2430.1,0.82255]
[1750776593580,0.82255,2430.2,2430.1,0.82256]
[1750776593779,3.2078,2430.3,2430.2,0.82253]
[1750776593979,3.2078,2430.3,2430.1,0.82253]
[1750776594281,3.2078,2430.3,2430.2,0.82253]
[1750776594479,3.2078,2430.3,2430.1,0.82254]
[1750776594681,3.2078,2430.3,2430.2,0.82253]
[1750776594983,4.03031,2430.3,2430.2,0.82253]
[1750776595174,3.2078,2430.3,2430.2,0.82253]
[1750776595476,0.82253,2430.2,2429.8,3.4927]
[1750776595777,1.3432,2430.3,2430.2,0.82253]
[1750776596081,10.3458,2430.4,2429.9,2.05655]
[1750776596381,11.16827,2430.4,2430.0,1.4361]
[1750776596584,11.16827,2430.4,2430.3,0.82249]
[1750776596776,10.3458,2430.4,2430.3,0.82249]
[1750776596972,4.03026,2430.4,2430.3,0.82249]
[1750776597171,3.2078,2430.4,2430.3,0.82249]
[1750776598781,3.2078,2430.8,2430.7,0.82233]
[1750776599284,0.82238,2430.7,2430.6,0.82237]
[1750776599684,4.03014,2430.8,2430.7,0.82236]
[1750776600278,0.82243,2430.6,2430.5,0.82242]
[1750776600783,3.2078,2430.8,2430.7,0.82236]
[1750776601088,0.82229,2430.9,2430.8,0.82232]
[1750776601275,0.82228,2431.0,2430.9,0.82226]
[1750776601481,8.07428,2431.0,2430.9,0.82226]
[1750776601781,7.252,2431.0,2430.9,0.82226]
[1750776601980,5.8737,2431.1,2431.0,0.82226]
[1750776602385,6.69592,2431.1,2431.0,0.82226]
[1750776602682,3.2078,2431.1,2431.0,0.82226]
[1750776602881,10.4598,2432.0,2431.2,2.05544]
[1750776603082,3.2078,2431.5,2431.3,1.4042]
[1750776603286,3.2078,2431.7,2431.6,0.82203]
[1750776603689,10.4588,2431.7,2431.6,0.82203]
[1750776604087,11.28082,2431.7,2431.6,0.82203]
[1750776604292,3.2078,2431.7,2431.6,0.82203]
[1750776604990,7.251,2431.9,2431.8,0.82199]
[1750776605381,3.2078,2432.0,2431.9,0.82195]
[1750776606077,8.6803,2432.3,2432.2,0.82185]
[1750776606281,1.4293,2432.3,2432.2,0.82185]
[1750776606482,3.2078,2432.4,2432.3,0.82182]
[1750776606685,3.2078,2432.9,2432.8,0.82165]
[1750776606892,3.8857,2433.2,2433.1,0.82155]
[1750776607386,4.70723,2433.2,2433.0,0.82156]
[1750776607578,4.70723,2433.2,2433.1,0.82155]
[1750776607781,4.70723,2433.2,2433.0,0.82156]
[1750776608184,0.82163,2432.9,2432.6,0.8217]
[1750776608389,3.2078,2432.7,2432.0,4.5419]
[1750776608689,0.82173,2432.6,2432.0,11.7919]
[1750776608891,3.2078,2432.7,2432.4,0.82177]
[1750776609287,3.2078,2433.0,2432.4,3.2078]
[1750776609494,3.2078,2433.0,2432.7,0.82167]
[1750776609495,4.02939,2433.0,2432.7,0.82167]
[1750776609787,3.2078,2433.0,2432.8,0.82162]
[1750776610293,3.2078,2433.0,2432.9,0.82161]
[1750776610791,4.02939,2433.0,2432.5,1.4214]
[1750776610989,3.2078,2433.0,2432.5,0.82173]
[1750776611180,3.2078,2432.7,2432.0,5.26255]
[1750776611385,3.2078,2432.7,2432.2,1.4214]
[1750776611584,0.82179,2432.4,2432.2,2.24323]
[1750776611785,0.82182,2432.3,2432.2,1.4214]
[1750776611994,0.82185,2432.2,2432.0,11.2777]
[1750776612197,0.82184,2432.3,2432.1,0.82187]
[1750776612489,0.82188,2432.1,2432.0,3.2078]
[1750776614699,0.82186,2432.2,2432.1,0.82187]
[1750776615283,4.512,2432.4,2431.7,3.47303]
[1750776615493,3.2078,2432.1,2431.6,3.2078]
[1750776615695,0.82201,2431.8,2431.7,0.82201]
[1750776616191,0.82202,2431.7,2431.6,4.02985]
[1750776616394,0.82201,2431.8,2431.7,0.822]
[1750776616593,0.82202,2431.7,2431.6,4.02983]
[1750776617294,0.822,2431.8,2431.7,0.822]
[1750776618098,0.82196,2431.9,2431.8,0.82196]
[1750776618398,0.82199,2431.9,2431.8,0.82197]
[1750776618698,0.82202,2431.8,2431.7,0.82201]
[1750776619000,0.82202,2431.8,2431.3,4.02994]
[1750776619001,0.82212,2431.4,2431.3,4.02994]
[1750776619192,3.2078,2431.5,2430.9,5.2488]
[1750776619386,0.82223,2431.1,2431.0,0.82223]
[1750776620192,0.82229,2431.0,2430.9,0.82228]
[1750776620396,0.82225,2431.1,2431.0,0.82224]
[1750776621097,3.2078,2431.2,2430.6,4.5493]
[1750776621393,3.2078,2431.2,2431.1,0.82222]
[1750776622993,0.82216,2431.3,2431.2,0.82219]
[1750776624296,8.07015,2431.4,2431.3,0.82215]
[1750776624694,0.82218,2431.3,2431.2,0.82216]
[1750776624900,0.82222,2431.2,2431.1,0.8222]
[1750776625295,0.82227,2431.1,2431.0,0.82224]
[1750776625801,3.2078,2431.2,2430.7,2.05588]
[1750776625997,0.82224,2431.1,2431.0,0.82222]
[1750776626295,0.82229,2431.0,2430.9,0.82227]
[1750776626692,0.82236,2430.8,2430.7,0.82231]
[1750776627098,0.82239,2430.7,2430.6,0.82236]
[1750776627297,5.26355,2430.9,2430.4,0.82242]
[1750776627298,0.82245,2430.5,2430.4,0.82242]
[1750776627496,4.03022,2430.6,2430.5,0.82243]
[1750776627699,0.82246,2430.5,2430.4,0.82243]
[1750776627892,0.8225,2430.4,2430.3,0.82247]
[1750776628100,0.82253,2430.3,2430.2,0.8225]
[1750776628702,0.82253,2430.3,2430.0,2.0374]
[1750776628703,0.82257,2430.1,2430.0,0.82258]
[1750776628902,3.2078,2430.3,2430.2,0.82253]
[1750776631604,3.2078,2430.3,2430.2,1.49133]
[1750776632299,0.8224,2430.6,2430.5,0.82239]
[1750776634492,0.8224,2430.6,2430.3,1.3885]
[1750776634493,5.2638,2430.6,2430.1,1.3485]
[1750776634693,0.82256,2430.2,2430.1,0.82254]
[1750776635601,0.82265,2429.9,2429.8,0.82262]
[1750776637007,0.8227,2429.8,2429.7,0.82267]
[1750776638610,12.4973,2430.0,2429.2,2.38210516]
[1750776638910,12.4973,2430.0,2429.1,5.6386954]
[1750776638911,0.82284,2429.4,2429.3,0.82281]
[1750776639107,0.82286,2429.3,2429.1,4.5579]
[1750776639299,3.2078,2429.4,2429.1,1.3501]
[1750776639499,0.82286,2429.3,2429.2,0.82284]
[1750776639699,2.05717,2429.2,2428.5,2.4308954]
[1750776640011,2.05759,2428.7,2428.2,3.2078]
[1750776640207,0.82324,2428.1,2428.0,1.306]
[1750776640502,2.05793,2428.3,2427.8,3.2078]
[1750776640706,0.82333,2427.9,2427.5,1.306]
[1750776640907,0.82331,2427.9,2427.8,0.82334]
[1750776641114,3.2078,2428.1,2428.0,0.82327]
[1750776641406,7.234,2428.6,2428.5,0.8231]
[1750776641606,0.82306,2428.7,2428.5,0.82308]
[1750776641913,0.82301,2428.8,2428.6,0.82304]
[1750776642102,3.2078,2428.9,2428.3,1.306]
[1750776642298,0.8231,2428.5,2428.4,0.82312]
[1750776642510,4.5405,2428.9,2428.3,2.12915]
[1750776642703,3.2078,2428.6,2428.3,1.306]
[1750776642902,4.5405,2428.9,2428.7,0.82302]
[1750776643199,4.5405,2428.9,2428.3,1.306]
[1750776643200,0.82305,2428.7,2428.3,1.306]
[1750776643405,4.03088,2428.6,2428.4,0.82311]
[1750776643908,3.2078,2428.6,2428.3,2.12915]
[1750776644118,0.82315,2428.4,2428.0,0.7112]
[1750776644307,7.235,2428.5,2428.0,0.82325]
[1750776644612,1.3327,2428.4,2428.0,0.82325]
[1750776644910,1.3327,2428.4,2428.3,0.82317]
[1750776645098,4.03089,2428.6,2427.9,2.05827]
[1750776645302,8.05812,2428.5,2428.4,0.82314]
[1750776645504,0.82315,2428.4,2428.3,0.82315]
[1750776645810,8.05813,2428.5,2428.4,0.82314]
[1750776646307,3.2078,2428.6,2428.5,0.8231]
[1750776646513,10.4448,2428.6,2428.5,0.8231]
[1750776647104,11.26787,2428.6,2428.5,0.8231]
[1750776647416,0.82316,2428.4,2428.0,1.4012]
[1750776647607,0.82316,2428.4,2428.3,0.82317]
[1750776647807,0.82315,2428.4,2428.3,0.82316]
[1750776648008,2.22813,2428.5,2428.0,1.4012]
[1750776648210,1.405,2428.5,2428.0,1.4012]
[1750776648406,3.2078,2428.3,2427.9,0.82328]
[1750776648615,4.11609,2428.5,2427.7,0.82336]
[1750776648616,0.82331,2427.9,2427.7,0.82336]
[1750776648810,0.82331,2427.9,2427.8,0.82334]
[1750776649008,0.82336,2427.8,2427.6,1.3923]
[1750776649315,3.2078,2428.0,2427.6,1.3923]
[1750776649612,3.2078,2428.0,2427.9,0.82331]
[1750776649814,10.4458,2428.0,2427.9,0.82331]
[1750776650813,3.2078,2428.0,2427.9,0.82331]
[1750776651214,3.8917,2428.3,2428.2,0.8232]
[1750776651412,0.82322,2428.2,2428.1,0.82322]
[1750776651607,4.7149,2428.3,2428.2,0.8232]
[1750776651812,11.1297,2428.3,2428.2,0.8232]
[1750776652401,11.1297,2428.3,2427.9,1.4196]
[1750776652402,0.82325,2428.1,2428.0,0.82326]
[1750776652609,0.82337,2427.8,2427.7,0.82337]
[1750776652808,4.5916,2428.2,2427.8,0.82334]
[1750776653004,4.5916,2428.2,2427.5,1.4029]
[1750776653212,3.2078,2427.9,2427.6,1.4196]
[1750776653413,0.82335,2427.8,2427.7,0.82336]
[1750776653615,0.82339,2427.7,2427.5,1.53731]
[1750776653815,3.2078,2427.9,2427.1,0.32946257]
[1750776654111,0.6699,2427.8,2427.7,0.82337]
[1750776654309,0.82339,2427.7,2427.2,2.05887]
[1750776654511,0.6699,2427.8,2427.7,0.82337]
[1750776654710,7.238,2428.0,2427.7,0.82336]
[1750776654911,8.06129,2428.0,2427.9,0.82331]
[1750776655315,8.06129,2428.0,2427.5,2.05861]
[1750776655316,0.82339,2427.7,2427.4,0.6573]
[1750776655621,0.82339,2427.7,2427.6,0.82339]
[1750776655622,0.82337,2427.7,2427.6,0.82339]
[1750776655821,0.82333,2427.9,2427.8,0.82332]
[1750776656013,5.26588,2428.2,2427.4,4.07899]
[1750776656014,3.2078,2428.2,2427.7,2.05844]
[1750776656214,8.06226,2428.1,2428.0,0.82324]
[1750776656409,0.82331,2428.0,2427.9,0.82328]
[1750776656719,0.82334,2427.9,2427.8,0.82332]
[1750776656917,3.2078,2427.9,2427.4,2.0203]
[1750776657115,0.82344,2427.6,2427.5,0.82341]
[1750776657312,0.82344,2427.6,2427.5,0.82342]
[1750776657509,3.2078,2427.6,2426.9,3.9108]
[1750776657717,3.2078,2427.0,2426.8,0.82366]
[1750776657921,2.05921,2426.8,2426.1,3.2078]
[1750776658112,7.253,2426.9,2426.4,0.82381]
[1750776658113,4.6372,2426.7,2426.4,0.82381]
[1750776658308,5.46093,2426.7,2426.2,2.05971]
[1750776658512,3.2078,2426.7,2426.6,0.82375]
[1750776659719,3.2078,2426.7,2426.3,2.0612]
[1750776660015,3.2078,2426.7,2426.6,0.82375]
[1750776660718,4.03154,2426.7,2426.5,0.82376]
[1750776660922,3.2078,2426.7,2426.3,2.0758]
[1750776661227,0.8238,2426.5,2426.3,0.82384]
[1750776661416,3.2078,2426.7,2426.6,0.82375]
[1750776661722,3.2078,2427.6,2426.9,2.05912]
[1750776661920,3.2078,2427.8,2427.3,2.05878]
[1750776662417,0.32404042,2428.0,2427.4,2.0587]
[1750776662615,8.07725,2428.1,2428.0,0.82327]
[1750776662812,7.254,2428.4,2428.2,0.82317]
[1750776663123,8.07716,2428.4,2427.8,5.26612]
[1750776663321,7.254,2428.4,2427.9,2.05827]
[1750776663517,8.07717,2428.4,2428.2,0.82318]
[1750776663712,0.82323,2428.2,2428.1,0.82324]
[1750776664124,0.82326,2428.1,2428.0,0.82325]
[1750776664324,0.82322,2428.2,2428.1,0.82323]
[1750776664621,0.82324,2428.1,2428.0,0.82325]
[1750776665023,0.82323,2428.2,2428.0,0.82325]
[1750776665217,3.2078,2428.3,2427.8,2.05829]
[1750776665524,1.3358,2428.6,2427.8,2.05829]
[1750776665525,0.82331,2427.9,2427.8,0.82331]
[1750776665724,0.82329,2428.0,2427.9,0.82331]
[1750776666033,4.03098,2428.3,2428.2,0.8232]
[1750776666224,0.82321,2428.2,2428.1,0.82322]
[1750776666621,11.285,2428.3,2428.1,0.82322]